[Event "Titled Tuesday Blitz April 12 Early 2022"]
[White "Subelj, Jan"]
[Black "Lauridsen, Jesper Morch"]
[WhiteFideId "14618583"]
[BlackFideId "1401890"]
[WhiteElo "2306"]
[BlackElo "2319"]
[Result "1-0"]
[Round "05"]
[TimeControl "180+1"]
[Date "2022.04.13"]
[WhiteClock "0:01:05"]
[BlackClock "0:00:32"]

1. d3 {[%clk 0:02:13]}  d5 {[%clk 0:02:57]} 2. Nf3 {[%clk 0:02:13]}  Nc6 {[%clk 0:02:56]} 3. g3 {[%clk 0:02:14]}  e5 {[%clk 0:02:55]} 4. Bg2 {[%clk 0:02:15]}  f6 {[%clk 0:02:55]} 5. O-O {[%clk 0:02:16]}  Be6 {[%clk 0:02:55]} 6. a3 {[%clk 0:02:11]}  Qd7 {[%clk 0:02:56]} 7. b4 {[%clk 0:02:12]}  h5 {[%clk 0:02:52]} 8. Bb2 {[%clk 0:02:07]}  h4 {[%clk 0:02:52]} 9. Nxh4 {[%clk 0:02:07]}  Bh3 {[%clk 0:02:45]} 10. Ng6 {[%clk 0:02:02]}  Rh6 {[%clk 0:02:32]} 11. Nxf8 {[%clk 0:02:00]}  Kxf8 {[%clk 0:02:25]} 12. Bh1 {[%clk 0:01:54]}  Bxf1 {[%clk 0:02:07]} 13. Qxf1 {[%clk 0:01:54]}  Nge7 {[%clk 0:02:05]} 14. c4 {[%clk 0:01:52]}  dxc4 {[%clk 0:02:03]} 15. dxc4 {[%clk 0:01:53]}  Nd4 {[%clk 0:02:03]} 16. Nc3 {[%clk 0:01:52]}  c6 {[%clk 0:01:56]} 17. e3 {[%clk 0:01:52]}  Ne6 {[%clk 0:01:49]} 18. Rd1 {[%clk 0:01:51]}  Qe8 {[%clk 0:01:47]} 19. Rd6 {[%clk 0:01:46]}  Nf5 {[%clk 0:01:44]} 20. Rd2 {[%clk 0:01:46]}  Ng5 {[%clk 0:01:43]} 21. h4 {[%clk 0:01:44]}  Qg6 {[%clk 0:01:01]} 22. hxg5 {[%clk 0:01:38]}  Rxh1+ {[%clk 0:00:59]} 23. Kxh1 {[%clk 0:01:34]}  Qh5+ {[%clk 0:00:53]} 24. Kg1 {[%clk 0:01:32]}  Ke7 {[%clk 0:00:48]} 25. Qd1 {[%clk 0:01:28]}  Qxg5 {[%clk 0:00:40]} 26. Rd7+ {[%clk 0:01:27]}  Ke8 {[%clk 0:00:41]} 27. Ne4 {[%clk 0:01:26]}  Qh6 {[%clk 0:00:39]} 28. Nd6+ {[%clk 0:01:23]}  Kf8 {[%clk 0:00:34]} 29. Nxf5 {[%clk 0:01:07]}  Qg6 {[%clk 0:00:32]} 30. Qd6+ {[%clk 0:01:06]}  Kg8 {[%clk 0:00:32]} 31. Ne7+ {[%clk 0:01:05]} 1-0


[Site "https://www.chess.com"]

[Event "Titled Tuesday Blitz April 12 Early 2022"]
[White "Tan, Jun Ying"]
[Black "Beerdsen, Thomas"]
[WhiteFideId "5710413"]
[BlackFideId "1030108"]
[WhiteElo "1827"]
[BlackElo "2585"]
[Result "1/2-1/2"]
[Round "05"]
[TimeControl "180+1"]
[Date "2022.04.13"]
[WhiteClock "0:00:16"]
[BlackClock "0:00:49"]

1. d4 {[%clk 0:02:56]}  h6 {[%clk 0:02:58]} 2. e4 {[%clk 0:02:56]}  g5 {[%clk 0:02:57]} 3. f4 {[%clk 0:02:48]}  gxf4 {[%clk 0:02:58]} 4. Bxf4 {[%clk 0:02:47]}  c5 {[%clk 0:02:54]} 5. Nf3 {[%clk 0:02:27]}  cxd4 {[%clk 0:02:44]} 6. Qxd4 {[%clk 0:02:25]}  Nf6 {[%clk 0:02:41]} 7. e5 {[%clk 0:02:18]}  Nc6 {[%clk 0:02:39]} 8. Qd2 {[%clk 0:02:17]}  Ne4 {[%clk 0:02:35]} 9. Qe3 {[%clk 0:02:14]}  d5 {[%clk 0:02:31]} 10. exd6 {[%clk 0:02:12]}  Bf5 {[%clk 0:02:29]} 11. Bd3 {[%clk 0:01:53]}  Nxd6 {[%clk 0:02:18]} 12. Bxd6 {[%clk 0:01:23]}  Bxd3 {[%clk 0:02:14]} 13. Be5 {[%clk 0:01:18]}  Nxe5 {[%clk 0:01:35]} 14. Qxe5 {[%clk 0:01:17]}  Rg8 {[%clk 0:01:20]} 15. cxd3 {[%clk 0:01:15]}  Qxd3 {[%clk 0:01:21]} 16. Nc3 {[%clk 0:01:14]}  Rxg2 {[%clk 0:01:21]} 17. Qb5+ {[%clk 0:01:09]}  Qxb5 {[%clk 0:01:20]} 18. Nxb5 {[%clk 0:01:10]}  Rc8 {[%clk 0:01:15]} 19. Nc3 {[%clk 0:01:01]}  Rxb2 {[%clk 0:01:14]} 20. Rc1 {[%clk 0:00:48]}  Rxc3 {[%clk 0:01:11]} 21. Rxc3 {[%clk 0:00:48]}  Rb1+ {[%clk 0:01:12]} 22. Kf2 {[%clk 0:00:47]}  Rxh1 {[%clk 0:01:12]} 23. Rc8+ {[%clk 0:00:47]}  Kd7 {[%clk 0:01:13]} 24. Rxf8 {[%clk 0:00:48]}  Ra1 {[%clk 0:01:14]} 25. Rxf7 {[%clk 0:00:46]}  Rxa2+ {[%clk 0:01:14]} 26. Ke3 {[%clk 0:00:43]}  b5 {[%clk 0:01:09]} 27. Rf5 {[%clk 0:00:42]}  b4 {[%clk 0:01:09]} 28. Rb5 {[%clk 0:00:41]}  a5 {[%clk 0:01:10]} 29. h4 {[%clk 0:00:38]}  Kd6 {[%clk 0:01:04]} 30. Nd4 {[%clk 0:00:35]}  e5 {[%clk 0:01:02]} 31. Nf5+ {[%clk 0:00:34]}  Kc6 {[%clk 0:01:02]} 32. Rxe5 {[%clk 0:00:33]}  a4 {[%clk 0:01:02]} 33. Nd4+ {[%clk 0:00:32]}  Kd6 {[%clk 0:01:03]} 34. Rb5 {[%clk 0:00:30]}  b3 {[%clk 0:01:03]} 35. Nxb3 {[%clk 0:00:19]}  Ra3 {[%clk 0:01:04]} 36. Rb6+ {[%clk 0:00:17]}  Kd5 {[%clk 0:01:00]} 37. Kd2 {[%clk 0:00:15]}  axb3 {[%clk 0:00:56]} 38. Rxh6 {[%clk 0:00:15]}  Kd4 {[%clk 0:00:50]} 39. Rd6+ {[%clk 0:00:14]}  Kc5 {[%clk 0:00:49]} 40. Rd8 {[%clk 0:00:14]}  b2 {[%clk 0:00:49]} 41. Kc2 {[%clk 0:00:14]}  Rh3 {[%clk 0:00:47]} 42. Kxb2 {[%clk 0:00:13]}  Rxh4 {[%clk 0:00:47]} 43. Rc8+ {[%clk 0:00:14]}  Kb4 {[%clk 0:00:47]} 44. Rb8+ {[%clk 0:00:14]}  Kc4 {[%clk 0:00:47]} 45. Rc8+ {[%clk 0:00:14]}  Kb4 {[%clk 0:00:48]} 46. Rb8+ {[%clk 0:00:15]}  Ka5 {[%clk 0:00:48]} 47. Ra8+ {[%clk 0:00:15]}  Kb6 {[%clk 0:00:48]} 48. Rb8+ {[%clk 0:00:16]}  Kc7 {[%clk 0:00:49]} 49. Rb3 {[%clk 0:00:16]}  Rh2+ {[%clk 0:00:49]} 50. Kc3 {[%clk 0:00:16]} 1/2-1/2


[Site "https://www.chess.com"]

[Event "Titled Tuesday Blitz April 12 Early 2022"]
[White "Tanenbaum, Zachary"]
[Black "Bluebaum, Matthias"]
[WhiteFideId "2060850"]
[BlackFideId "24651516"]
[WhiteElo "2168"]
[BlackElo "2550"]
[Result "0-1"]
[Round "05"]
[TimeControl "180+1"]
[Date "2022.04.12"]
[WhiteClock "0:00:42"]
[BlackClock "0:01:52"]

1. e4 {[%clk 0:02:59]}  c6 {[%clk 0:02:56]} 2. d4 {[%clk 0:03:00]}  d5 {[%clk 0:02:57]} 3. exd5 {[%clk 0:03:01]}  cxd5 {[%clk 0:02:56]} 4. Bd3 {[%clk 0:03:02]}  Nc6 {[%clk 0:02:56]} 5. c3 {[%clk 0:03:02]}  Qc7 {[%clk 0:02:57]} 6. Bg5 {[%clk 0:03:02]}  e6 {[%clk 0:02:45]} 7. Nd2 {[%clk 0:03:01]}  Be7 {[%clk 0:02:43]} 8. Bxe7 {[%clk 0:03:00]}  Ngxe7 {[%clk 0:02:44]} 9. Ngf3 {[%clk 0:03:00]}  O-O {[%clk 0:02:45]} 10. O-O {[%clk 0:03:01]}  f6 {[%clk 0:02:43]} 11. c4 {[%clk 0:03:00]}  Bd7 {[%clk 0:02:42]} 12. Re1 {[%clk 0:02:59]}  Rae8 {[%clk 0:02:43]} 13. Rc1 {[%clk 0:02:59]}  Kh8 {[%clk 0:02:43]} 14. a3 {[%clk 0:02:55]}  a5 {[%clk 0:02:39]} 15. g3 {[%clk 0:02:24]}  Bc8 {[%clk 0:02:27]} 16. cxd5 {[%clk 0:02:13]}  exd5 {[%clk 0:02:24]} 17. Nb1 {[%clk 0:02:01]}  Bg4 {[%clk 0:02:21]} 18. Bf1 {[%clk 0:01:21]}  Qb6 {[%clk 0:02:18]} 19. h3 {[%clk 0:01:12]}  Bxf3 {[%clk 0:02:12]} 20. Qxf3 {[%clk 0:01:12]}  Nxd4 {[%clk 0:02:12]} 21. Qd3 {[%clk 0:01:04]}  Nec6 {[%clk 0:02:07]} 22. Nc3 {[%clk 0:01:02]}  Ne5 {[%clk 0:02:04]} 23. Nxd5 {[%clk 0:00:58]}  Nxd3 {[%clk 0:01:58]} 24. Rxe8 {[%clk 0:00:57]}  Rxe8 {[%clk 0:01:58]} 25. Rc8 {[%clk 0:00:42]}  Rxc8 {[%clk 0:01:52]} 26. Nxb6 {[%clk 0:00:42]}  Rc1 {[%clk 0:01:52]} 0-1


[Site "https://www.chess.com"]

[Event "Titled Tuesday Blitz April 12 Early 2022"]
[White "Tasev, Dejan"]
[Black "Lou, Yiping"]
[WhiteFideId "936618"]
[BlackFideId "8603928"]
[WhiteElo "2253"]
[BlackElo "2412"]
[Result "1-0"]
[Round "05"]
[TimeControl "180+1"]
[Date "2022.04.12"]
[WhiteClock "0:00:20"]
[BlackClock "0:00:04"]

1. e4 {[%clk 0:03:00]}  e5 {[%clk 0:02:59]} 2. Nf3 {[%clk 0:03:00]}  Nc6 {[%clk 0:02:59]} 3. c3 {[%clk 0:03:00]}  d5 {[%clk 0:02:58]} 4. exd5 {[%clk 0:02:59]}  Qxd5 {[%clk 0:02:58]} 5. d4 {[%clk 0:02:58]}  exd4 {[%clk 0:02:57]} 6. cxd4 {[%clk 0:02:58]}  Nf6 {[%clk 0:02:55]} 7. Nc3 {[%clk 0:02:58]}  Bb4 {[%clk 0:02:54]} 8. Be2 {[%clk 0:02:58]}  O-O {[%clk 0:02:53]} 9. O-O {[%clk 0:02:57]}  Qa5 {[%clk 0:02:53]} 10. Bd2 {[%clk 0:02:51]}  Rd8 {[%clk 0:02:52]} 11. a3 {[%clk 0:02:50]}  Bf8 {[%clk 0:02:45]} 12. Ne4 {[%clk 0:02:38]}  Qd5 {[%clk 0:02:39]} 13. Nxf6+ {[%clk 0:02:38]}  gxf6 {[%clk 0:02:39]} 14. Be3 {[%clk 0:02:34]}  Bf5 {[%clk 0:02:36]} 15. Rc1 {[%clk 0:02:33]}  Bg6 {[%clk 0:02:35]} 16. Bc4 {[%clk 0:02:27]}  Qf5 {[%clk 0:02:29]} 17. Nh4 {[%clk 0:02:20]}  Qe4 {[%clk 0:02:26]} 18. Nxg6 {[%clk 0:02:19]}  hxg6 {[%clk 0:02:25]} 19. Qb3 {[%clk 0:02:07]}  Na5 {[%clk 0:02:05]} 20. Bxf7+ {[%clk 0:02:03]}  Kg7 {[%clk 0:02:04]} 21. Qa2 {[%clk 0:01:53]}  Bd6 {[%clk 0:01:58]} 22. Bc4 {[%clk 0:01:37]}  Rh8 {[%clk 0:01:50]} 23. h3 {[%clk 0:01:35]}  Nxc4 {[%clk 0:01:42]} 24. Qxc4 {[%clk 0:01:28]}  Rae8 {[%clk 0:01:32]} 25. Rfe1 {[%clk 0:01:26]}  Qf5 {[%clk 0:01:28]} 26. Qf1 {[%clk 0:01:18]}  Re4 {[%clk 0:01:24]} 27. Bd2 {[%clk 0:00:52]}  Rxd4 {[%clk 0:01:13]} 28. Bc3 {[%clk 0:00:52]}  Rd3 {[%clk 0:01:04]} 29. Rcd1 {[%clk 0:00:46]}  Rxd1 {[%clk 0:00:57]} 30. Rxd1 {[%clk 0:00:46]}  Re8 {[%clk 0:00:55]} 31. Re1 {[%clk 0:00:45]}  Rxe1 {[%clk 0:00:48]} 32. Qxe1 {[%clk 0:00:45]}  Kf7 {[%clk 0:00:48]} 33. Qd1 {[%clk 0:00:41]}  a6 {[%clk 0:00:45]} 34. g3 {[%clk 0:00:37]}  b5 {[%clk 0:00:42]} 35. h4 {[%clk 0:00:36]}  Qe6 {[%clk 0:00:40]} 36. h5 {[%clk 0:00:30]}  gxh5 {[%clk 0:00:39]} 37. Qxh5+ {[%clk 0:00:29]}  Ke7 {[%clk 0:00:39]} 38. Qh7+ {[%clk 0:00:29]}  Qf7 {[%clk 0:00:39]} 39. Qe4+ {[%clk 0:00:29]}  Kd7 {[%clk 0:00:39]} 40. Qb7 {[%clk 0:00:29]}  f5 {[%clk 0:00:30]} 41. Qxa6 {[%clk 0:00:28]}  Qd5 {[%clk 0:00:30]} 42. Qa7 {[%clk 0:00:25]}  f4 {[%clk 0:00:28]} 43. gxf4 {[%clk 0:00:25]}  Qd1+ {[%clk 0:00:25]} 44. Kg2 {[%clk 0:00:25]}  Qg4+ {[%clk 0:00:25]} 45. Kf1 {[%clk 0:00:25]}  Qh3+ {[%clk 0:00:21]} 46. Ke2 {[%clk 0:00:24]}  Qg4+ {[%clk 0:00:21]} 47. Kf1 {[%clk 0:00:25]}  Qxf4 {[%clk 0:00:18]} 48. Qe3 {[%clk 0:00:24]}  Qg4 {[%clk 0:00:16]} 49. Qe2 {[%clk 0:00:22]}  Qh3+ {[%clk 0:00:16]} 50. Ke1 {[%clk 0:00:23]}  c6 {[%clk 0:00:13]} 51. Kd1 {[%clk 0:00:22]}  Qh1+ {[%clk 0:00:10]} 52. Kc2 {[%clk 0:00:22]}  Qh7+ {[%clk 0:00:10]} 53. Qd3 {[%clk 0:00:22]}  Qf7 {[%clk 0:00:08]} 54. f3 {[%clk 0:00:20]}  Kc7 {[%clk 0:00:05]} 55. Ba5+ {[%clk 0:00:20]}  Kd7 {[%clk 0:00:04]} 56. Bb4 {[%clk 0:00:20]} 1-0


[Site "https://www.chess.com"]

[Event "Titled Tuesday Blitz April 12 Early 2022"]
[White "Vianello, Enrico"]
[Black "Nozdrachev, Leonid"]
[WhiteFideId "810738"]
[BlackFideId "24113433"]
[WhiteElo "2274"]
[BlackElo "2242"]
[Result "0-1"]
[Round "05"]
[TimeControl "180+1"]
[Date "2022.04.13"]
[WhiteClock "0:00:17"]
[BlackClock "0:00:30"]

1. c4 {[%clk 0:02:52]}  a6 {[%clk 0:03:00]} 2. Nc3 {[%clk 0:02:51]}  h5 {[%clk 0:03:00]} 3. e4 {[%clk 0:02:50]}  c5 {[%clk 0:02:58]} 4. Nf3 {[%clk 0:02:47]}  Nc6 {[%clk 0:02:57]} 5. d4 {[%clk 0:02:47]}  cxd4 {[%clk 0:02:52]} 6. Nxd4 {[%clk 0:02:48]}  Nf6 {[%clk 0:02:48]} 7. Be2 {[%clk 0:02:45]}  h4 {[%clk 0:02:46]} 8. h3 {[%clk 0:02:43]}  d6 {[%clk 0:02:44]} 9. Be3 {[%clk 0:02:42]}  g6 {[%clk 0:02:36]} 10. Qd2 {[%clk 0:02:41]}  Bg7 {[%clk 0:02:34]} 11. O-O {[%clk 0:02:40]}  Bd7 {[%clk 0:02:28]} 12. Rad1 {[%clk 0:02:39]}  Qc7 {[%clk 0:02:25]} 13. Nd5 {[%clk 0:02:38]}  Nxd5 {[%clk 0:02:23]} 14. cxd5 {[%clk 0:02:38]}  Nxd4 {[%clk 0:02:22]} 15. Bxd4 {[%clk 0:02:39]}  Bxd4 {[%clk 0:02:20]} 16. Qxd4 {[%clk 0:02:40]}  O-O {[%clk 0:02:14]} 17. Rc1 {[%clk 0:02:35]}  Qa5 {[%clk 0:02:13]} 18. a3 {[%clk 0:02:29]}  Rfc8 {[%clk 0:02:11]} 19. Rfd1 {[%clk 0:02:21]}  Rxc1 {[%clk 0:02:10]} 20. Rxc1 {[%clk 0:02:20]}  Rc8 {[%clk 0:02:11]} 21. Rxc8+ {[%clk 0:02:15]}  Bxc8 {[%clk 0:02:12]} 22. Qc3 {[%clk 0:02:07]}  Qxc3 {[%clk 0:02:11]} 23. bxc3 {[%clk 0:02:08]}  f5 {[%clk 0:02:11]} 24. Bd3 {[%clk 0:01:58]}  Kg7 {[%clk 0:02:09]} 25. Kf1 {[%clk 0:01:58]}  Kf6 {[%clk 0:02:06]} 26. Ke2 {[%clk 0:01:52]}  Ke5 {[%clk 0:02:06]} 27. Ke3 {[%clk 0:01:48]}  f4+ {[%clk 0:01:58]} 28. Kf3 {[%clk 0:01:45]}  g5 {[%clk 0:01:59]} 29. Ke2 {[%clk 0:01:40]}  g4 {[%clk 0:01:47]} 30. hxg4 {[%clk 0:01:39]}  Bxg4+ {[%clk 0:01:48]} 31. f3 {[%clk 0:01:35]}  Bd7 {[%clk 0:01:48]} 32. Kd2 {[%clk 0:01:31]}  Ba4 {[%clk 0:01:41]} 33. Be2 {[%clk 0:01:21]}  Bb3 {[%clk 0:01:34]} 34. Bd3 {[%clk 0:01:20]}  Ba4 {[%clk 0:01:32]} 35. Be2 {[%clk 0:01:19]}  Be8 {[%clk 0:01:29]} 36. Bd3 {[%clk 0:01:18]}  Bg6 {[%clk 0:01:29]} 37. Be2 {[%clk 0:01:17]}  Bh5 {[%clk 0:01:30]} 38. Kd3 {[%clk 0:01:14]}  b6 {[%clk 0:01:12]} 39. Kd2 {[%clk 0:01:13]}  a5 {[%clk 0:01:11]} 40. Kd3 {[%clk 0:01:03]}  Bf7 {[%clk 0:01:09]} 41. Kc4 {[%clk 0:01:00]}  Be8 {[%clk 0:01:09]} 42. Kb3 {[%clk 0:00:57]}  Bd7 {[%clk 0:01:07]} 43. Kc2 {[%clk 0:00:53]}  Kf6 {[%clk 0:01:07]} 44. Kd3 {[%clk 0:00:52]}  Bb5+ {[%clk 0:01:05]} 45. c4 {[%clk 0:00:53]}  Ba4 {[%clk 0:01:04]} 46. Kd4 {[%clk 0:00:51]}  Bd7 {[%clk 0:01:02]} 47. Bf1 {[%clk 0:00:48]}  Be8 {[%clk 0:01:00]} 48. Be2 {[%clk 0:00:48]}  Ba4 {[%clk 0:01:00]} 49. Bf1 {[%clk 0:00:47]}  Bd1 {[%clk 0:00:59]} 50. Kd3 {[%clk 0:00:32]}  Ke5 {[%clk 0:00:55]} 51. Kd2 {[%clk 0:00:32]}  h3 {[%clk 0:00:54]} 52. gxh3 {[%clk 0:00:23]}  Bxf3 {[%clk 0:00:53]} 53. h4 {[%clk 0:00:21]}  Kxe4 {[%clk 0:00:50]} 54. Bd3+ {[%clk 0:00:19]}  Kd4 {[%clk 0:00:48]} 55. h5 {[%clk 0:00:20]}  Bxh5 {[%clk 0:00:46]} 56. Bf1 {[%clk 0:00:19]}  Bg6 {[%clk 0:00:43]} 57. Be2 {[%clk 0:00:18]}  Bf5 {[%clk 0:00:42]} 58. Bf1 {[%clk 0:00:18]}  Bd7 {[%clk 0:00:42]} 59. Be2 {[%clk 0:00:18]}  Bc8 {[%clk 0:00:42]} 60. Bf1 {[%clk 0:00:18]}  Bb7 {[%clk 0:00:41]} 61. Be2 {[%clk 0:00:17]}  Ba6 {[%clk 0:00:38]} 62. c5 {[%clk 0:00:17]}  Bxe2 {[%clk 0:00:30]} 0-1


[Site "https://www.chess.com"]

[Event "Titled Tuesday Blitz April 12 Early 2022"]
[White "Vokarev, Sergey"]
[Black "Caputcuoglu, Zeki Berke"]
[WhiteFideId "4119711"]
[BlackFideId "34548610"]
[WhiteElo "2343"]
[BlackElo "1368"]
[Result "1-0"]
[Round "05"]
[TimeControl "180+1"]
[Date "2022.04.13"]
[WhiteClock "0:00:20"]
[BlackClock "0:00:02"]

1. e4 {[%clk 0:03:00]}  e5 {[%clk 0:03:00]} 2. Nf3 {[%clk 0:03:00]}  Nc6 {[%clk 0:03:00]} 3. Bb5 {[%clk 0:03:00]}  a6 {[%clk 0:03:00]} 4. Bxc6 {[%clk 0:03:00]}  dxc6 {[%clk 0:03:00]} 5. Nc3 {[%clk 0:03:01]}  Qd6 {[%clk 0:02:39]} 6. d4 {[%clk 0:02:55]}  exd4 {[%clk 0:02:33]} 7. Qxd4 {[%clk 0:02:55]}  Qxd4 {[%clk 0:02:29]} 8. Nxd4 {[%clk 0:02:55]}  Bd7 {[%clk 0:02:30]} 9. Bf4 {[%clk 0:02:54]}  O-O-O {[%clk 0:02:27]} 10. O-O-O {[%clk 0:02:53]}  Ne7 {[%clk 0:02:24]} 11. a3 {[%clk 0:02:45]}  Ng6 {[%clk 0:02:06]} 12. Bg3 {[%clk 0:02:45]}  f6 {[%clk 0:02:01]} 13. Nf3 {[%clk 0:02:32]}  h5 {[%clk 0:01:49]} 14. h3 {[%clk 0:02:30]}  h4 {[%clk 0:01:45]} 15. Bh2 {[%clk 0:02:30]}  Bc5 {[%clk 0:01:45]} 16. Rd2 {[%clk 0:02:30]}  Be6 {[%clk 0:01:44]} 17. Rhd1 {[%clk 0:02:27]}  Rxd2 {[%clk 0:01:43]} 18. Rxd2 {[%clk 0:02:27]}  Rd8 {[%clk 0:01:44]} 19. Nd1 {[%clk 0:02:18]}  Bc4 {[%clk 0:01:35]} 20. Rxd8+ {[%clk 0:02:09]}  Kxd8 {[%clk 0:01:36]} 21. Nd2 {[%clk 0:02:08]}  Be2 {[%clk 0:01:31]} 22. Nc3 {[%clk 0:02:06]}  Bh5 {[%clk 0:01:22]} 23. f3 {[%clk 0:02:05]}  Be3 {[%clk 0:01:00]} 24. Ne2 {[%clk 0:01:59]}  Kd7 {[%clk 0:00:50]} 25. Kd1 {[%clk 0:01:56]}  Ne5 {[%clk 0:00:48]} 26. Bxe5 {[%clk 0:01:49]}  fxe5 {[%clk 0:00:45]} 27. Nc4 {[%clk 0:01:49]}  Bf4 {[%clk 0:00:44]} 28. Nxf4 {[%clk 0:01:47]}  exf4 {[%clk 0:00:45]} 29. Kd2 {[%clk 0:01:36]}  b6 {[%clk 0:00:43]} 30. b4 {[%clk 0:01:18]}  Ke6 {[%clk 0:00:39]} 31. Nb2 {[%clk 0:01:16]}  Be8 {[%clk 0:00:34]} 32. Nd3 {[%clk 0:01:13]}  g5 {[%clk 0:00:35]} 33. c4 {[%clk 0:01:08]}  Kd6 {[%clk 0:00:23]} 34. c5+ {[%clk 0:01:06]}  Ke6 {[%clk 0:00:21]} 35. Kc3 {[%clk 0:01:06]}  Bf7 {[%clk 0:00:20]} 36. Kd4 {[%clk 0:01:05]}  Kf6 {[%clk 0:00:20]} 37. a4 {[%clk 0:01:04]}  a5 {[%clk 0:00:17]} 38. bxa5 {[%clk 0:00:56]}  bxa5 {[%clk 0:00:17]} 39. Ne5 {[%clk 0:00:57]}  Bb3 {[%clk 0:00:16]} 40. Nxc6 {[%clk 0:00:57]}  Bxa4 {[%clk 0:00:16]} 41. Nxa5 {[%clk 0:00:57]}  Bd1 {[%clk 0:00:16]} 42. Kd3 {[%clk 0:00:44]}  Ke5 {[%clk 0:00:13]} 43. Nc4+ {[%clk 0:00:43]}  Ke6 {[%clk 0:00:13]} 44. Nb2 {[%clk 0:00:39]}  Bb3 {[%clk 0:00:12]} 45. Kd4 {[%clk 0:00:37]}  Ke7 {[%clk 0:00:09]} 46. Ke5 {[%clk 0:00:37]}  Be6 {[%clk 0:00:09]} 47. c6 {[%clk 0:00:31]}  Bc8 {[%clk 0:00:07]} 48. Nd1 {[%clk 0:00:27]}  Kf7 {[%clk 0:00:06]} 49. Nf2 {[%clk 0:00:27]}  Kg6 {[%clk 0:00:06]} 50. Ng4 {[%clk 0:00:26]}  Ba6 {[%clk 0:00:06]} 51. Ke6 {[%clk 0:00:21]}  Bf1 {[%clk 0:00:06]} 52. Kd7 {[%clk 0:00:21]}  Bxg2 {[%clk 0:00:06]} 53. Nf2 {[%clk 0:00:21]}  Bf1 {[%clk 0:00:05]} 54. e5 {[%clk 0:00:21]}  Kf5 {[%clk 0:00:02]} 55. e6 {[%clk 0:00:21]}  Bc4 {[%clk 0:00:02]} 56. e7 {[%clk 0:00:21]}  Bf7 {[%clk 0:00:02]} 57. Kxc7 {[%clk 0:00:21]}  Be8 {[%clk 0:00:03]} 58. Kd6 {[%clk 0:00:20]}  Kf6 {[%clk 0:00:02]} 59. c7 {[%clk 0:00:20]} 1-0


[Site "https://www.chess.com"]

[Event "Titled Tuesday Blitz April 12 Early 2022"]
[White "Wagh Suyog"]
[Black "Dreev, Aleksey"]
[WhiteFideId "25071688"]
[BlackFideId "4100107"]
[WhiteElo "2181"]
[BlackElo "2625"]
[Result "0-1"]
[Round "05"]
[TimeControl "180+1"]
[Date "2022.04.12"]
[WhiteClock "0:00:09"]
[BlackClock "0:00:12"]

1. e4 {[%clk 0:02:50]}  c5 {[%clk 0:02:59]} 2. Nf3 {[%clk 0:02:50]}  e6 {[%clk 0:03:00]} 3. d4 {[%clk 0:02:51]}  cxd4 {[%clk 0:03:01]} 4. Nxd4 {[%clk 0:02:51]}  Nf6 {[%clk 0:03:01]} 5. Bd3 {[%clk 0:02:51]}  Nc6 {[%clk 0:03:00]} 6. Nb3 {[%clk 0:02:51]}  d5 {[%clk 0:02:37]} 7. exd5 {[%clk 0:02:49]}  Nxd5 {[%clk 0:02:38]} 8. O-O {[%clk 0:02:49]}  Be7 {[%clk 0:02:38]} 9. a3 {[%clk 0:02:48]}  O-O {[%clk 0:02:37]} 10. c4 {[%clk 0:02:43]}  Nf6 {[%clk 0:02:35]} 11. Nc3 {[%clk 0:02:44]}  Ne5 {[%clk 0:02:34]} 12. Be2 {[%clk 0:02:43]}  Qxd1 {[%clk 0:02:26]} 13. Rxd1 {[%clk 0:02:44]}  Bd7 {[%clk 0:02:26]} 14. Bf4 {[%clk 0:02:43]}  Ng6 {[%clk 0:02:25]} 15. Bd6 {[%clk 0:02:42]}  Bxd6 {[%clk 0:02:23]} 16. Rxd6 {[%clk 0:02:43]}  Rfc8 {[%clk 0:02:21]} 17. c5 {[%clk 0:02:34]}  Bc6 {[%clk 0:01:56]} 18. Na5 {[%clk 0:02:25]}  Nf4 {[%clk 0:01:48]} 19. Nxc6 {[%clk 0:02:18]}  bxc6 {[%clk 0:01:47]} 20. Ba6 {[%clk 0:02:13]}  Rc7 {[%clk 0:01:47]} 21. Rd4 {[%clk 0:01:41]}  N4d5 {[%clk 0:01:45]} 22. Nxd5 {[%clk 0:01:34]}  Nxd5 {[%clk 0:01:44]} 23. b4 {[%clk 0:01:34]}  g5 {[%clk 0:01:35]} 24. f3 {[%clk 0:01:33]}  Kg7 {[%clk 0:01:35]} 25. Kf2 {[%clk 0:01:34]}  Kf6 {[%clk 0:01:35]} 26. Re1 {[%clk 0:01:32]}  h6 {[%clk 0:01:35]} 27. h4 {[%clk 0:01:33]}  Rg8 {[%clk 0:01:30]} 28. Rh1 {[%clk 0:01:32]}  Rd7 {[%clk 0:01:08]} 29. Bc4 {[%clk 0:01:19]}  Rgd8 {[%clk 0:01:06]} 30. hxg5+ {[%clk 0:01:17]}  hxg5 {[%clk 0:01:06]} 31. b5 {[%clk 0:01:03]}  cxb5 {[%clk 0:00:54]} 32. Bxb5 {[%clk 0:01:04]}  Rc7 {[%clk 0:00:55]} 33. Rc1 {[%clk 0:01:03]}  Rb8 {[%clk 0:00:38]} 34. a4 {[%clk 0:01:00]}  Ke7 {[%clk 0:00:37]} 35. Rc2 {[%clk 0:00:52]}  Rbc8 {[%clk 0:00:30]} 36. Rdc4 {[%clk 0:00:47]}  a5 {[%clk 0:00:27]} 37. Ke2 {[%clk 0:00:27]}  Rd8 {[%clk 0:00:22]} 38. Rc1 {[%clk 0:00:25]}  Kf6 {[%clk 0:00:21]} 39. g3 {[%clk 0:00:25]}  Rh8 {[%clk 0:00:20]} 40. Kf2 {[%clk 0:00:23]}  Rh2+ {[%clk 0:00:19]} 41. Kg1 {[%clk 0:00:23]}  Rd2 {[%clk 0:00:19]} 42. Re4 {[%clk 0:00:20]}  Rb2 {[%clk 0:00:15]} 43. c6 {[%clk 0:00:20]}  Ke7 {[%clk 0:00:14]} 44. Ba6 {[%clk 0:00:16]}  Kd6 {[%clk 0:00:14]} 45. Bb7 {[%clk 0:00:17]}  Rbxb7 {[%clk 0:00:13]} 46. cxb7 {[%clk 0:00:09]}  Rxc1+ {[%clk 0:00:12]} 47. Re1 {[%clk 0:00:09]}  Rxe1+ {[%clk 0:00:12]} 48. Kf2 {[%clk 0:00:09]}  Rb1 {[%clk 0:00:12]} 0-1


[Site "https://www.chess.com"]